[Event "Turkish Cup 2022"]
[Site "Sakarya"]
[Date "2022.03.26"]
[Round "3.41"]
[White "Ozturk, Mustafa"]
[Black "Tarhan, Adar"]
[Result "0-1"]
[ECO "C54"]
[WhiteElo "1375"]
[BlackElo "2125"]
[Annotator "ChessBase"]
[PlyCount "86"]
[EventDate "2022.03.25"]
[EventType "swiss"]
[EventCountry "TUR"]
[SourceTitle "playchess.com"]
[Source "ChessBase"]
[SourceQuality "1"]
[TimeControl "5400+30"]

1. e4 {[%emt 0:01:00]} e5 {[%emt 0:03:00]} 2. Nf3 {[%emt 0:00:30]} Nc6 {[%emt 0:00:30]} 3. Bc4 {[%emt 0:00:30]} Bc5 {[%emt 0:00:30]} 4. c3 {[%emt 0:00:30]} Nf6 {[%emt 0:00:30]} 5. d3 {[%emt 0:00:30]} d6 {[%emt 0:00:30]} 6. h3 {[%emt 0:00:30]} a6 {[%emt 0:00:30]} 7. Bb3 {[%emt 0:00:30]} O-O {[%emt 0:00:00]} 8. Nbd2 {[%emt 0:00:00]} Be6 {[%emt 0:00:00]} 9. Nf1 {[%emt 0:00:00]} d5 {[%emt 0:06:30]} 10. Qe2 {[%emt 0:00:00]} dxe4 {[%emt 0:07:30]} 11. dxe4 {[%emt 0:00:00]} Bxb3 {[%emt 0:02:30]} 12. axb3 {[%emt 0:00:00]} a5 {[%emt 0:00:30]} 13. Ng3 {[%emt 0:02:00]} Qe7 {[%emt 0:01:30]} 14. Nh4 {[%emt 0:03:30]} Rad8 {[%emt 0:03:30]} 15. Qf3 {[%emt 0:22:30]} Qe6 {[%emt 0:03:30]} 16. Nhf5 {[%emt 0:04:30]} Rfe8 {[%emt 0:03:30]} 17. Bg5 {[%emt 0:15:30]} Bf8 {[%emt 0:01:30]} 18. Nh5 {[%emt 0:21:30]} Nxh5 {[%emt 0:03:30]} 19. Bxd8 {[%emt 0:02:30]} Rxd8 {[%emt 0:00:30]} 20. Qxh5 {[%emt 0:00:30]} g6 {[%emt 0:00:30]} 21. Qg4 {[%emt 0:02:30]} Qxb3 {[%emt 0:00:30]} 22. Rb1 {[%emt 0:02:30]} h5 {[%emt 0:02:30]} 23. Qg5 {[%emt 0:05:30]} Qc4 {[%emt 0:01:30]} 24. Ne3 {[%emt 0:03:51]} Qb5 {[%emt 0:06:30]} 25. Rd1 {[%emt 0:03:33]} Be7 {[%emt 0:00:30]} 26. Qg3 {[%emt 0:00:38]} Nd4 {[%emt 0:01:30]} 27. Rd2 {[%emt 0:04:01]} Ne6 {[%emt 0:00:30]} 28. Rxd8+ {[%emt 0:04:34]} Bxd8 {[%emt 0:00:30]} 29. Nd1 {[%emt 0:00:30]} Nf4 {[%emt 0:00:30]} 30. Qf3 {[%emt 0:00:24]} Nd3+ {[%emt 0:01:30]} 31. Kd2 {[%emt 0:00:36]} Nxb2 {[%emt 0:00:30]} 32. Nxb2 {[%emt 0:00:56]} Qxb2+ {[%emt 0:00:00]} 33. Kd3 {[%emt 0:00:08]} Bg5 {[%emt 0:00:00]} 34. Rd1 {[%emt 0:00:43]} a4 {[%emt 0:01:30]} 35. h4 {[%emt 0:00:23]} Bh6 {[%emt 0:00:30]} 36. g4 {[%emt 0:01:01]} hxg4 {[%emt 0:00:30]} 37. Qxg4 {[%emt 0:00:00]} a3 {[%emt 0:00:30]} 38. h5 {[%emt 0:00:35]} Qb5+ {[%emt 0:04:30]} 39. Kc2 {[%emt 0:01:03]} Qa4+ {[%emt 0:00:30]} 40. Kd3 {[%emt 0:00:00]} b5 {[%emt 0:02:30]} 41. hxg6 {[%emt 0:00:52]} f5 {[%emt 0:00:30]} 42. Qf3 {[%emt 0:00:15]} fxe4+ {[%emt 0:00:00]} 43. Qxe4 {[%emt 0:00:48]} Qxd1# {[%emt 0:00:00]} 0-1

[Event "Turkish Cup 2022"]
[Site "Sakarya"]
[Date "2022.03.26"]
[Round "3.42"]
[White "Canbulan, Arda"]
[Black "Teke, Murat"]
[Result "1-0"]
[ECO "B76"]
[WhiteElo "1867"]
[BlackElo "1521"]
[Annotator "NA"]
[PlyCount "93"]
[EventDate "2022.03.25"]
[EventType "swiss"]
[EventCountry "TUR"]
[SourceTitle "playchess.com"]
[Source "ChessBase"]
[SourceQuality "1"]
[TimeControl "5400+30"]

1. e4 {[%emt 0:01:00]} c5 {[%emt 0:01:00]} 2. Nf3 {[%emt 0:00:30]} Nc6 {[%emt 0:00:30]} 3. d4 {[%emt 0:00:30]} cxd4 {[%emt 0:00:30]} 4. Nxd4 {[%emt 0:00:00]} d6 {[%emt 0:00:30]} 5. Nc3 {[%emt 0:00:00]} Nf6 {[%emt 0:01:30]} 6. f3 {[%emt 0:01:30]} g6 {[%emt 0:00:30]} 7. Be3 {[%emt 0:00:30]} Bg7 {[%emt 0:01:30]} 8. Qd2 {[%emt 0:00:00]} O-O {[%emt 0:07:30]} 9. O-O-O {[%emt 0:00:00]} a6 {[%emt 0:00:30]} 10. g4 {[%emt 0:00:30]} Nxd4 {[%emt 0:01:30]} 11. Bxd4 {[%emt 0:00:30]} Qa5 {[%emt 0:10:30]} 12. Kb1 {[%emt 0:00:30]} Be6 {[%emt 0:00:30]} 13. Nd5 {[%emt 0:09:30]} Qxd2 {[%emt 0:01:30]} 14. Nxe7+ {[%emt 0:00:30]} Kh8 {[%emt 0:00:00]} 15. Rxd2 {[%emt 0:00:30]} Rfe8 {[%emt 0:03:00]} 16. Bxf6 {[%emt 0:04:30]} Bxf6 {[%emt 0:01:30]} 17. Nd5 {[%emt 0:00:30]} Bxd5 {[%emt 0:01:30]} 18. Rxd5 {[%emt 0:00:00]} Be5 {[%emt 0:01:30]} 19. h4 {[%emt 0:00:00]} Kg7 {[%emt 0:03:30]} 20. Bd3 {[%emt 0:02:30]} h6 {[%emt 0:03:30]} 21. c4 {[%emt 0:04:30]} Rac8 {[%emt 0:02:30]} 22. Rc1 {[%emt 0:04:30]} Bf4 {[%emt 0:06:30]} 23. Rc2 {[%emt 0:01:30]} Rc5 {[%emt 0:09:30]} 24. b4 {[%emt 0:01:30]} Rxd5 {[%emt 0:04:30]} 25. cxd5 {[%emt 0:00:30]} Re7 {[%emt 0:01:30]} 26. Kb2 {[%emt 0:02:30]} Kf6 {[%emt 0:03:30]} 27. Kb3 {[%emt 0:01:30]} Ke5 {[%emt 0:00:30]} 28. Ka4 {[%emt 0:05:30]} Be3 {[%emt 0:02:30]} 29. Rc8 {[%emt 0:12:30]} Kf4 {[%emt 0:10:30]} 30. Be2 {[%emt 0:02:30]} Bd4 {[%emt 0:00:30]} 31. Ka5 {[%emt 0:04:30]} Ke3 {[%emt 0:02:00]} 32. Rc2 {[%emt 0:01:30]} h5 {[%emt 0:01:23]} 33. gxh5 {[%emt 0:00:00]} gxh5 {[%emt 0:00:05]} 34. a4 {[%emt 0:04:00]} f5 {[%emt 0:01:57]} 35. exf5 {[%emt 0:03:30]} Re5 {[%emt 0:00:25]} 36. Bxa6 {[%emt 0:08:30]} bxa6 {[%emt 0:00:30]} 37. Kxa6 {[%emt 0:00:00]} Rxf5 {[%emt 0:01:23]} 38. b5 {[%emt 0:00:00]} Rf8 {[%emt 0:00:44]} 39. Kb7 {[%emt 0:07:30]} Kd3 {[%emt 0:03:08]} 40. Rc1 {[%emt 0:01:53]} Rxf3 {[%emt 0:02:06]} 41. a5 {[%emt 0:00:49]} Ke4 {[%emt 0:02:00]} 42. b6 {[%emt 0:09:23]} Kxd5 {[%emt 0:01:36]} 43. a6 {[%emt 0:00:58]} Bxb6 {[%emt 0:02:35]} 44. Kxb6 {[%emt 0:00:30]} Rb3+ {[%emt 0:00:30]} 45. Kc7 {[%emt 0:00:05]} Ke5 {[%emt 0:01:04]} 46. Ra1 {[%emt 0:01:25]} d5 {[%emt 0:02:28]} 47. a7 {[%emt 0:00:09]} 1-0

[Event "Turkish Cup 2022"]
[Site "Sakarya"]
[Date "2022.03.26"]
[Round "3.43"]
[White "Kocakaplan, Emre"]
[Black "Bayramiclilar, Yusuf Ruzgar"]
[Result "1-0"]
[ECO "A29"]
[WhiteElo "1846"]
[BlackElo "1514"]
[Annotator "NA"]
[PlyCount "95"]
[EventDate "2022.03.25"]
[EventType "swiss"]
[EventCountry "TUR"]
[SourceTitle "playchess.com"]
[Source "ChessBase"]
[SourceQuality "1"]
[TimeControl "5400+30"]

1. c4 {[%emt 0:01:00]} e5 {[%emt 0:01:00]} 2. Nc3 {[%emt 0:00:30]} Nf6 {[%emt 0:00:30]} 3. Nf3 {[%emt 0:00:30]} Nc6 {[%emt 0:00:30]} 4. g3 {[%emt 0:00:30]} Bc5 {[%emt 0:00:30]} 5. Bg2 {[%emt 0:00:30]} O-O {[%emt 0:00:30]} 6. O-O {[%emt 0:00:30]} d6 {[%emt 0:00:00]} 7. b3 {[%emt 0:00:00]} h6 {[%emt 0:00:00]} 8. d3 {[%emt 0:02:00]} Be6 {[%emt 0:00:00]} 9. Bb2 {[%emt 0:00:30]} Qd7 {[%emt 0:00:00]} 10. e3 {[%emt 0:02:30]} Bh3 {[%emt 0:00:30]} 11. d4 {[%emt 0:01:30]} exd4 {[%emt 0:00:30]} 12. exd4 {[%emt 0:00:30]} Bb6 {[%emt 0:00:00]} 13. a3 {[%emt 0:03:30]} Bxg2 {[%emt 0:01:00]} 14. Kxg2 {[%emt 0:00:30]} a5 {[%emt 0:00:30]} 15. d5 {[%emt 0:11:30]} Ne7 {[%emt 0:00:30]} 16. Na4 {[%emt 0:00:30]} Ne4 {[%emt 0:00:30]} 17. Nxb6 {[%emt 0:01:30]} cxb6 {[%emt 0:00:30]} 18. Qd4 {[%emt 0:00:00]} Nf6 {[%emt 0:03:30]} 19. Qxb6 {[%emt 0:02:00]} Nf5 {[%emt 0:00:30]} 20. Bxf6 {[%emt 0:09:30]} gxf6 {[%emt 0:00:30]} 21. Rfe1 {[%emt 0:00:30]} Rfc8 {[%emt 0:00:30]} 22. Nd4 {[%emt 0:17:30]} Ng7 {[%emt 0:01:30]} 23. Nb5 {[%emt 0:01:30]} Nf5 {[%emt 0:00:30]} 24. Nd4 {[%emt 0:08:30]} Ng7 {[%emt 0:00:00]} 25. Qb5 {[%emt 0:04:30]} Qg4 {[%emt 0:01:00]} 26. Rad1 {[%emt 0:02:30]} Rc5 {[%emt 0:00:00]} 27. Qxb7 {[%emt 0:00:30]} Rcc8 {[%emt 0:00:00]} 28. f3 {[%emt 0:01:30]} Qg6 {[%emt 0:00:00]} 29. a4 {[%emt 0:09:47]} Re8 {[%emt 0:01:00]} 30. Qd7 {[%emt 0:03:41]} f5 {[%emt 0:00:30]} 31. f4 {[%emt 0:03:44]} Qf6 {[%emt 0:00:00]} 32. Rxe8+ {[%emt 0:02:10]} Rxe8 {[%emt 0:00:00]} 33. Rd2 {[%emt 0:00:52]} Re4 {[%emt 0:00:30]} 34. Nf3 {[%emt 0:01:22]} Qc3 {[%emt 0:00:00]} 35. Qxd6 {[%emt 0:01:00]} Re3 {[%emt 0:00:00]} 36. Rf2 {[%emt 0:00:29]} Qxb3 {[%emt 0:00:30]} 37. Qxh6 {[%emt 0:00:33]} Qxc4 {[%emt 0:00:30]} 38. Qc6 {[%emt 0:03:05]} Qe4 {[%emt 0:01:30]} 39. Qa8+ {[%emt 0:01:12]} Kh7 {[%emt 0:00:00]} 40. Qxa5 {[%emt 0:00:25]} Nh5 {[%emt 0:01:00]} 41. d6 {[%emt 0:01:40]} Nxf4+ {[%emt 0:00:30]} 42. gxf4 {[%emt 0:00:41]} Qxf4 {[%emt 0:00:30]} 43. h3 {[%emt 0:01:19]} Rd3 {[%emt 0:00:30]} 44. Qe5 {[%emt 0:01:09]} Qxe5 {[%emt 0:02:30]} 45. Nxe5 {[%emt 0:00:04]} Rxd6 {[%emt 0:00:30]} 46. Rxf5 {[%emt 0:00:51]} f6 {[%emt 0:00:30]} 47. Ng4 {[%emt 0:00:18]} Kg6 {[%emt 0:00:00]} 48. Rxf6+ {[%emt 0:00:06]} 1-0

[Event "Turkish Cup 2022"]
[Site "Sakarya"]
[Date "2022.03.26"]
[Round "3.44"]
[White "Ocakoglu, Orhan Kemal"]
[Black "Isik, Kadri"]
[Result "0-1"]
[ECO "A45"]
[WhiteElo "1482"]
[BlackElo "1858"]
[Annotator "NA"]
[PlyCount "92"]
[EventDate "2022.03.25"]
[EventType "swiss"]
[EventCountry "TUR"]
[SourceTitle "playchess.com"]
[Source "ChessBase"]
[SourceQuality "1"]
[TimeControl "5400+30"]

1. d4 {[%emt 0:01:00]} Nf6 {[%emt 0:01:00]} 2. Bf4 {[%emt 0:00:30]} e6 {[%emt 0:00:30]} 3. e3 {[%emt 0:02:30]} c5 {[%emt 0:01:30]} 4. c3 {[%emt 0:01:30]} Qb6 {[%emt 0:00:30]} 5. Qc2 {[%emt 0:08:30]} cxd4 {[%emt 0:02:30]} 6. exd4 {[%emt 0:00:00]} Nc6 {[%emt 0:00:30]} 7. Nf3 {[%emt 0:00:00]} Be7 {[%emt 0:00:30]} 8. Bd3 {[%emt 0:00:30]} d5 {[%emt 0:00:30]} 9. O-O {[%emt 0:00:30]} Bd7 {[%emt 0:00:30]} 10. Nbd2 {[%emt 0:01:30]} Rc8 {[%emt 0:00:00]} 11. Qb3 {[%emt 0:00:30]} Qxb3 {[%emt 0:03:00]} 12. axb3 {[%emt 0:00:30]} a6 {[%emt 0:01:30]} 13. b4 {[%emt 0:06:30]} Na7 {[%emt 0:00:30]} 14. h3 {[%emt 0:12:30]} Bb5 {[%emt 0:00:30]} 15. Ne5 {[%emt 0:01:30]} Nd7 {[%emt 0:03:30]} 16. Bxb5 {[%emt 0:02:30]} Nxb5 {[%emt 0:00:30]} 17. Nb3 {[%emt 0:00:30]} f6 {[%emt 0:10:30]} 18. Nd3 {[%emt 0:01:30]} Bd6 {[%emt 0:02:30]} 19. Rfe1 {[%emt 0:05:30]} Kf7 {[%emt 0:00:30]} 20. Nbc5 {[%emt 0:19:30]} Nxc5 {[%emt 0:05:30]} 21. bxc5 {[%emt 0:00:30]} Bxf4 {[%emt 0:02:30]} 22. Nxf4 {[%emt 0:00:30]} Rhe8 {[%emt 0:00:00]} 23. Nd3 {[%emt 0:02:30]} Ra8 {[%emt 0:09:00]} 24. f4 {[%emt 0:10:30]} a5 {[%emt 0:09:30]} 25. Ra4 {[%emt 0:00:30]} Ra6 {[%emt 0:00:30]} 26. Rea1 {[%emt 0:01:30]} Rea8 {[%emt 0:00:00]} 27. Nc1 {[%emt 0:00:55]} b6 {[%emt 0:10:00]} 28. cxb6 {[%emt 0:03:08]} Rxb6 {[%emt 0:00:30]} 29. Nd3 {[%emt 0:00:08]} Nd6 {[%emt 0:07:30]} 30. Rxa5 {[%emt 0:01:09]} Rxa5 {[%emt 0:02:30]} 31. Rxa5 {[%emt 0:01:13]} Nc4 {[%emt 0:00:30]} 32. Ra2 {[%emt 0:00:17]} Rb3 {[%emt 0:01:30]} 33. Kf2 {[%emt 0:00:58]} Kg6 {[%emt 0:01:30]} 34. Kf3 {[%emt 0:03:19]} h5 {[%emt 0:00:30]} 35. Ra6 {[%emt 0:00:58]} Nxb2 {[%emt 0:03:30]} 36. Nxb2 {[%emt 0:00:38]} Rxc3+ {[%emt 0:00:30]} 37. Kf2 {[%emt 0:04:37]} Rc2+ {[%emt 0:00:00]} 38. Kf3 {[%emt 0:03:50]} Rxb2 {[%emt 0:00:00]} 39. Rxe6 {[%emt 0:00:00]} Rd2 {[%emt 0:00:30]} 40. g4 {[%emt 0:01:11]} Rd3+ {[%emt 0:03:30]} 41. Re3 {[%emt 0:02:27]} Rxd4 {[%emt 0:00:31]} 42. f5+ {[%emt 0:00:46]} Kg5 {[%emt 0:01:02]} 43. Re7 {[%emt 0:00:30]} hxg4+ {[%emt 0:00:00]} 44. hxg4 {[%emt 0:00:05]} Rf4+ {[%emt 0:00:27]} 45. Ke3 {[%emt 0:00:43]} Re4+ {[%emt 0:00:30]} 46. Rxe4 {[%emt 0:00:18]} dxe4 {[%emt 0:00:00]} 0-1

[Event "Turkish Cup 2022"]
[Site "Sakarya"]
[Date "2022.03.26"]
[Round "3.45"]
[White "Isbilir, Okan"]
[Black "Gani, Refik Efe"]
[Result "1/2-1/2"]
[ECO "D30"]
[WhiteElo "1915"]
[BlackElo "1370"]
[Annotator "NA"]
[PlyCount "133"]
[EventDate "2022.03.25"]
[EventType "swiss"]
[EventCountry "TUR"]
[SourceTitle "playchess.com"]
[Source "ChessBase"]
[SourceQuality "1"]
[TimeControl "5400+30"]

1. d4 {[%emt 0:01:00]} d5 {[%emt 0:01:00]} 2. c4 {[%emt 0:00:30]} e6 {[%emt 0:00:00]} 3. g3 {[%emt 0:00:30]} c6 {[%emt 0:00:00]} 4. Qc2 {[%emt 0:00:30]} dxc4 {[%emt 0:02:30]} 5. Qxc4 {[%emt 0:00:30]} b5 {[%emt 0:05:30]} 6. Qd3 {[%emt 0:03:30]} Bb7 {[%emt 0:02:30]} 7. Bg2 {[%emt 0:01:30]} Nf6 {[%emt 0:01:30]} 8. Nc3 {[%emt 0:00:30]} a6 {[%emt 0:00:30]} 9. Nh3 {[%emt 0:06:30]} h6 {[%emt 0:04:30]} 10. O-O {[%emt 0:00:30]} Be7 {[%emt 0:01:30]} 11. Rd1 {[%emt 0:00:30]} O-O {[%emt 0:01:30]} 12. Bf4 {[%emt 0:03:30]} Nbd7 {[%emt 0:03:30]} 13. Rac1 {[%emt 0:03:30]} Qb6 {[%emt 0:03:30]} 14. a4 {[%emt 0:03:30]} Rfd8 {[%emt 0:06:30]} 15. Qc2 {[%emt 0:02:30]} c5 {[%emt 0:07:30]} 16. Ne4 {[%emt 0:04:30]} c4 {[%emt 0:04:30]} 17. a5 {[%emt 0:13:30]} Qa7 {[%emt 0:01:30]} 18. Nc3 {[%emt 0:06:30]} Bxg2 {[%emt 0:05:30]} 19. Kxg2 {[%emt 0:00:30]} Nb8 {[%emt 0:03:30]} 20. Bxb8 {[%emt 0:04:30]} Raxb8 {[%emt 0:01:30]} 21. e3 {[%emt 0:02:30]} Qc7 {[%emt 0:01:30]} 22. Ra1 {[%emt 0:02:30]} Bb4 {[%emt 0:03:30]} 23. Ne4 {[%emt 0:05:30]} Nxe4 {[%emt 0:06:30]} 24. Qxe4 {[%emt 0:00:30]} c3 {[%emt 0:01:30]} 25. bxc3 {[%emt 0:04:30]} Bxc3 {[%emt 0:01:30]} 26. Rdc1 {[%emt 0:01:30]} b4 {[%emt 0:01:30]} 27. Nf4 {[%emt 0:00:30]} b3 {[%emt 0:07:30]} 28. Ra3 {[%emt 0:05:30]} b2 {[%emt 0:03:36]} 29. Rcxc3 {[%emt 0:01:30]} Qxc3 {[%emt 0:00:24]} 30. Rxc3 {[%emt 0:00:30]} b1=Q {[%emt 0:00:07]} 31. Qxb1 {[%emt 0:03:56]} Rxb1 {[%emt 0:00:30]} 32. Rc6 {[%emt 0:00:09]} Ra8 {[%emt 0:00:06]} 33. Nd3 {[%emt 0:03:00]} Ra1 {[%emt 0:01:47]} 34. Rc5 {[%emt 0:01:17]} Rb8 {[%emt 0:00:36]} 35. Ne5 {[%emt 0:02:58]} f6 {[%emt 0:03:47]} 36. Nd7 {[%emt 0:01:10]} Rb5 {[%emt 0:01:50]} 37. Rc8+ {[%emt 0:00:17]} Kf7 {[%emt 0:00:24]} 38. Nc5 {[%emt 0:00:41]} Raxa5 {[%emt 0:03:21]} 39. Rc7+ {[%emt 0:00:30]} Ke8 {[%emt 0:00:30]} 40. Nxe6 {[%emt 0:00:00]} g5 {[%emt 0:01:31]} 41. Ra7 {[%emt 0:01:47]} Rb6 {[%emt 0:02:10]} 42. d5 {[%emt 0:01:50]} Ra2 {[%emt 0:01:52]} 43. Kf3 {[%emt 0:00:13]} a5 {[%emt 0:01:37]} 44. h4 {[%emt 0:00:30]} a4 {[%emt 0:00:34]} 45. hxg5 {[%emt 0:01:24]} hxg5 {[%emt 0:00:06]} 46. e4 {[%emt 0:00:27]} a3 {[%emt 0:00:50]} 47. Kg4 {[%emt 0:01:09]} Rxf2 {[%emt 0:01:40]} 48. Rxa3 {[%emt 0:00:03]} Rxe6 {[%emt 0:01:00]} 49. dxe6 {[%emt 0:00:33]} Ke7 {[%emt 0:00:05]} 50. Ra6 {[%emt 0:00:33]} Re2 {[%emt 0:00:37]} 51. Kf3 {[%emt 0:00:53]} Rd2 {[%emt 0:00:09]} 52. Kg4 {[%emt 0:02:51]} Re2 {[%emt 0:00:13]} 53. Kf3 {[%emt 0:00:39]} Rd2 {[%emt 0:00:02]} 54. e5 {[%emt 0:00:34]} f5 {[%emt 0:01:37]} 55. g4 {[%emt 0:00:55]} f4 {[%emt 0:02:42]} 56. Ke4 {[%emt 0:00:38]} Rd8 {[%emt 0:01:26]} 57. Kf5 {[%emt 0:03:04]} Rf8+ {[%emt 0:00:48]} 58. Kxg5 {[%emt 0:00:10]} f3 {[%emt 0:00:15]} 59. Ra1 {[%emt 0:00:10]} f2 {[%emt 0:00:06]} 60. Rf1 {[%emt 0:00:12]} Kxe6 {[%emt 0:00:19]} 61. Kh6 {[%emt 0:02:06]} Kxe5 {[%emt 0:00:15]} 62. g5 {[%emt 0:00:19]} Ke4 {[%emt 0:00:49]} 63. g6 {[%emt 0:00:30]} Ke3 {[%emt 0:00:00]} 64. g7 {[%emt 0:00:31]} Rg8 {[%emt 0:00:00]} 65. Kh7 {[%emt 0:00:11]} Rxg7+ {[%emt 0:00:23]} 66. Kxg7 {[%emt 0:00:00]} Ke2 {[%emt 0:00:10]} 67. Ra1 {[%emt 0:00:43]} 1/2-1/2

[Event "Turkish Cup 2022"]
[Site "Sakarya"]
[Date "2022.03.26"]
[Round "3.46"]
[White "Kilic, Cihan"]
[Black "Togrul, Ayberk"]
[Result "1-0"]
[ECO "A48"]
[WhiteElo "1874"]
[BlackElo "1526"]
[Annotator "NA"]
[PlyCount "73"]
[EventDate "2022.03.25"]
[EventType "swiss"]
[EventCountry "TUR"]
[SourceTitle "playchess.com"]
[Source "ChessBase"]
[SourceQuality "1"]
[TimeControl "5400+30"]

1. d4 {[%emt 0:03:00]} Nf6 {[%emt 0:01:00]} 2. Nf3 {[%emt 0:01:30]} g6 {[%emt 0:01:30]} 3. Bf4 {[%emt 0:00:30]} Bg7 {[%emt 0:00:30]} 4. e3 {[%emt 0:00:30]} d6 {[%emt 0:00:30]} 5. Nbd2 {[%emt 0:00:30]} Nbd7 {[%emt 0:00:00]} 6. h3 {[%emt 0:00:00]} b6 {[%emt 0:00:00]} 7. Be2 {[%emt 0:00:00]} Bb7 {[%emt 0:00:30]} 8. O-O {[%emt 0:00:30]} O-O {[%emt 0:00:30]} 9. c4 {[%emt 0:00:30]} Re8 {[%emt 0:01:30]} 10. Qc2 {[%emt 0:01:30]} e5 {[%emt 0:02:30]} 11. Bh2 {[%emt 0:02:30]} exd4 {[%emt 0:03:30]} 12. Nxd4 {[%emt 0:01:30]} Ne5 {[%emt 0:05:30]} 13. Rfd1 {[%emt 0:02:30]} Nc6 {[%emt 0:05:30]} 14. N2f3 {[%emt 0:05:30]} Qe7 {[%emt 0:07:30]} 15. Rac1 {[%emt 0:01:30]} Nxd4 {[%emt 0:00:30]} 16. Nxd4 {[%emt 0:01:30]} Nd7 {[%emt 0:01:30]} 17. b4 {[%emt 0:02:30]} Bxd4 {[%emt 0:04:30]} 18. Rxd4 {[%emt 0:01:30]} a5 {[%emt 0:01:30]} 19. a3 {[%emt 0:00:30]} axb4 {[%emt 0:00:00]} 20. axb4 {[%emt 0:00:30]} Ne5 {[%emt 0:02:00]} 21. Qb2 {[%emt 0:05:30]} Qg5 {[%emt 0:02:30]} 22. Bg3 {[%emt 0:01:30]} Qf6 {[%emt 0:04:30]} 23. c5 {[%emt 0:08:30]} bxc5 {[%emt 0:13:30]} 24. bxc5 {[%emt 0:00:30]} Ba6 {[%emt 0:03:30]} 25. Bxa6 {[%emt 0:03:30]} Rxa6 {[%emt 0:00:00]} 26. Qb7 {[%emt 0:00:30]} dxc5 {[%emt 0:04:00]} 27. Rxc5 {[%emt 0:04:30]} Rb6 {[%emt 0:03:30]} 28. Qxc7 {[%emt 0:05:30]} Rb1+ {[%emt 0:00:30]} 29. Kh2 {[%emt 0:00:00]} Nf3+ {[%emt 0:08:30]} 30. gxf3 {[%emt 0:00:00]} Qxf3 {[%emt 0:00:00]} 31. Rc1 {[%emt 0:00:30]} Rb2 {[%emt 0:00:00]} 32. Rf4 {[%emt 0:00:00]} Qd5 {[%emt 0:00:30]} 33. Rd1 {[%emt 0:01:00]} Qb3 {[%emt 0:02:30]} 34. Rd8 {[%emt 0:00:30]} Rxd8 {[%emt 0:02:30]} 35. Qxd8+ {[%emt 0:00:30]} Kg7 {[%emt 0:00:30]} 36. Qf6+ {[%emt 0:00:00]} Kg8 {[%emt 0:00:30]} 37. Rd4 {[%emt 0:00:00]} 1-0

[Event "Turkish Cup 2022"]
[Site "Sakarya"]
[Date "2022.03.26"]
[Round "3.47"]
[White "Zuberoglu, Ibrahim Berk"]
[Black "Parlarkilic, Engin"]
[Result "0-1"]
[ECO "B01"]
[WhiteElo "1780"]
[BlackElo "1587"]
[Annotator "NA"]
[PlyCount "52"]
[EventDate "2022.03.25"]
[EventType "swiss"]
[EventCountry "TUR"]
[SourceTitle "playchess.com"]
[Source "ChessBase"]
[SourceQuality "1"]
[TimeControl "5400+30"]

1. e4 {[%emt 0:01:00]} d5 {[%emt 0:01:00]} 2. exd5 {[%emt 0:00:30]} Nf6 {[%emt 0:00:30]} 3. d4 {[%emt 0:00:00]} Bg4 {[%emt 0:00:30]} 4. Be2 {[%emt 0:00:00]} Bxe2 {[%emt 0:00:30]} 5. Qxe2 {[%emt 0:01:30]} Qxd5 {[%emt 0:01:30]} 6. Nf3 {[%emt 0:00:00]} Nc6 {[%emt 0:07:30]} 7. O-O {[%emt 0:03:00]} h6 {[%emt 0:19:30]} 8. Be3 {[%emt 0:10:30]} O-O-O {[%emt 0:00:30]} 9. c4 {[%emt 0:00:30]} Qh5 {[%emt 0:00:30]} 10. Nc3 {[%emt 0:01:30]} e6 {[%emt 0:01:30]} 11. Rfd1 {[%emt 0:09:30]} Bd6 {[%emt 0:07:30]} 12. h3 {[%emt 0:01:30]} g5 {[%emt 0:00:30]} 13. Nb5 {[%emt 0:03:30]} Bf4 {[%emt 0:01:30]} 14. Bxf4 {[%emt 0:05:30]} gxf4 {[%emt 0:00:30]} 15. Qd2 {[%emt 0:02:30]} e5 {[%emt 0:09:30]} 16. Nxe5 {[%emt 0:04:30]} Nxd4 {[%emt 0:03:30]} 17. Nxa7+ {[%emt 0:08:30]} Kb8 {[%emt 0:01:30]} 18. Qa5 {[%emt 0:00:30]} Ne2+ {[%emt 0:08:30]} 19. Kh1 {[%emt 0:05:30]} Ng3+ {[%emt 0:00:30]} 20. fxg3 {[%emt 0:01:30]} Rxd1+ {[%emt 0:00:30]} 21. Rxd1 {[%emt 0:00:30]} Qxd1+ {[%emt 0:00:30]} 22. Kh2 {[%emt 0:00:30]} fxg3+ {[%emt 0:01:30]} 23. Kxg3 {[%emt 0:00:00]} Qd6 {[%emt 0:10:30]} 24. Kf3 {[%emt 0:01:00]} Re8 {[%emt 0:03:40]} 25. Nxf7 {[%emt 0:05:30]} Qd3+ {[%emt 0:00:56]} 26. Kf4 {[%emt 0:02:30]} Qxc4+ {[%emt 0:02:18]} 0-1

[Event "Turkish Cup 2022"]
[Site "Sakarya"]
[Date "2022.03.27"]
[Round "4.1"]
[White "Zor, Alber Kadir"]
[Black "Koksal, Ege"]
[Result "1/2-1/2"]
[ECO "C45"]
[WhiteElo "2147"]
[BlackElo "2343"]
[Annotator "NA"]
[PlyCount "20"]
[EventDate "2022.03.25"]
[EventType "swiss"]
[EventCountry "TUR"]
[SourceTitle "playchess.com"]
[Source "ChessBase"]
[SourceQuality "1"]
[TimeControl "5400+30"]

1. e4 {[%emt 0:01:00]} e5 {[%emt 0:01:00]} 2. Nf3 {[%emt 0:00:30]} Nc6 {[%emt 0:00:30]} 3. d4 {[%emt 0:00:30]} exd4 {[%emt 0:00:30]} 4. Nxd4 {[%emt 0:00:00]} Nf6 {[%emt 0:00:00]} 5. Nxc6 {[%emt 0:00:00]} bxc6 {[%emt 0:00:00]} 6. e5 {[%emt 0:00:00]} Nd5 {[%emt 0:00:00]} 7. c4 {[%emt 0:01:00]} Nb6 {[%emt 0:01:00]} 8. Be3 {[%emt 0:15:30]} Bb4+ {[%emt 0:00:30]} 9. Nd2 {[%emt 0:02:30]} Qe7 {[%emt 0:06:30]} 10. Bd3 {[%emt 0:06:30]} O-O {[%emt 0:13:30]} 1/2-1/2